Cogmind - Beta 13 @@@ ROGUE MODE // 2024.04.20 @ 21:46:15 Player: A Moose Result: Destroyed by G-47 Trooper with Particle Gun Performance ------------- Evolutions (2) 1000 Regions Visited (6) 1200 Robots Destroyed (33) 165 Value Destroyed (898) 898 Prototype IDs (3) 60 Alien Tech Used (0) 0 Bonus (650) 650 TOTAL SCORE: 3973 Bonus ------- Follower Combat Kills 150 Entered Garrisons 200 Aligned with FarCom 300 Cogmind --------- Core Integrity 0/550 Matter 270/300 Energy 31/265 System Corruption 0% Temperature Cool (6) Movement Rolling (190) Ox6 Location -8/Garrison Parts ------- > --- POWER (1) -------- Improved Ion Engine > --- PROPULSION (2) --- Compact Wheel > --- UTILITY (6) ------ Huge Storage Unit Machine Analyzer Improved Targeting Computer Hardlight Generator Long-range Tractor Beam Trap Reconfigurator > --- WEAPON (2) ------- Heavy Assault Rifle Light Cannon > --- INVENTORY (25) --- Ion Engine Light Ion Engine Light Ion Engine Improved Ion Engine Improved Ion Engine Light Nuclear Core Light Nuclear Core Wheel Wheel Wheel Improved Heat Sink Medium Matter Pod (100) Medium Matter Pod (76) Compact Matter Pod (0) Experimental Sensor Array Tractor Beam Beam Rifle Field Laser Shock Bomb Launcher Mining Laser Peak State ------------ > --- POWER ------------ Improved Ion Engine > --- PROPULSION ------- Compact Wheel Compact Wheel > --- UTILITY ---------- Huge Storage Unit Machine Analyzer Improved Targeting Computer Hardlight Generator Long-range Tractor Beam Trap Reconfigurator > --- WEAPON ----------- Heavy Assault Rifle Heavy Assault Rifle > --- INVENTORY -------- Ion Engine Light Ion Engine Light Ion Engine Improved Ion Engine Light Nuclear Core Light Nuclear Core Wheel Wheel Wheel Medium Matter Pod Medium Matter Pod Compact Matter Pod Experimental Sensor Array Tractor Beam Field Laser Heavy Assault Rifle Heavy Assault Rifle Light Cannon Shock Bomb Launcher Mining Laser [Rating: 33] Favorites ----------- Power Light Ion Engine Engine Light Ion Engine Propulsion Wheel Wheel Wheel Utility Huge Storage Unit Device Long-range Tractor Beam Storage Huge Storage Unit Processor Improved Targeting Computer Protection Hardened Light Armor Plating Weapon Heavy Assault Rifle Energy Gun Field Laser Ballistic Gun Heavy Assault Rifle Ballistic Cannon Light Cannon Launcher Grenade Launcher Build | -11 -10 -10 -10 -9 -8 -8 ------- Run | Yrd Mat Min Exi Min Mat Gar Slots Evolved 4 | . . . . . 4 . Power . | . . . . . . . Propulsion . | . . . . . . . Utility 4 | . . . . . 4 . Weapon . | . . . . . . . Parts Attached 55 | 5 9 3 3 . 29 6 Power 5 | 1 2 . . . 2 . Engine 5 | 1 2 . . . 2 . Core . | . . . . . . . Reactor . | . . . . . . . Propulsion 8 | 2 2 . . . 4 . Treads . | . . . . . . . Leg . | . . . . . . . Wheel 8 | 2 2 . . . 4 . Hover . | . . . . . . . Flight . | . . . . . . . Utility 26 | 1 1 3 3 . 15 3 Device 10 | . . 1 2 . 4 3 Storage 2 | 1 1 . . . . . Processor 2 | . . . . . 2 . Hackware . | . . . . . . . Protection 12 | . . 2 1 . 9 . Artifact . | . . . . . . . Weapon 16 | 1 4 . . . 8 3 Energy Gun 1 | . . . . . 1 . Energy Cannon . | . . . . . . . Ballistic Gun 8 | 1 3 . . . 2 2 Ballistic Cannon 2 | . . . . . 1 1 Launcher 5 | . 1 . . . 4 . Special Weapon . | . . . . . . . Impact Weapon . | . . . . . . . Slashing Weapon . | . . . . . . . Piercing Weapon . | . . . . . . . Special Melee Weapon . | . . . . . . . Unidentified Prototypes 3 | . . 1 2 . . . Parts Lost 22 | . . . . . 18 4 Power 2 | . . . . . 2 . Propulsion 5 | . . . . . 4 1 Utility 10 | . . . . . 10 . Weapon 5 | . . . . . 2 3 Highest Loss Streak 13 | . . . . . 13 3 To Critical Strikes . | . . . . . . . Average Slot Usage (%) 91 | . 84 96 99 100 81 96 Engine 11 | . 14 14 14 14 8 9 Wheel 23 | . 28 28 28 28 16 18 Device 5 | . . . 5 . 8 23 Storage 12 | . 14 14 14 14 9 9 Processor 4 | . . . . . 8 18 Protection 8 | . . 10 7 14 13 . Ballistic Gun 21 | . 16 28 28 28 12 18 Launcher 1 | . 10 . . . 1 . Naked Turns . | . . . . . . . Heaviest Build 108 | 9 89 94 94 94 108 100 Greatest Support 32 | 26 26 20 20 20 32 32 Greatest Overweight (x) 32 | . 4 4 4 4 32 3 Average Overweight (x) 3 | . 2 4 4 4 3 3 Largest Inventory Capacity 25 | 8 25 25 25 25 25 25 Average Capacity 24 | 7 22 25 25 25 25 25 Most Carried 25 | 8 23 25 25 25 25 22 Average Carried 21 | 3 12 24 25 25 21 20 Final Capacity 25 | 8 25 25 25 25 25 25 Final Carried 25 | 8 23 25 25 25 21 20 Class Distribution -------------------- 93% | Mutant 6% | Skirmisher Dominant Class ---------------- Mutant | -10/Materials Mutant | -10/Mines Mutant | -10/Exiles Mutant | -9/Mines Mutant | -8/Materials Mutant | -8/Garrison Resources | -11 -10 -10 -10 -9 -8 -8 ----------- Run | Yrd Mat Min Exi Min Mat Gar Matter Collected 1358 | 260 57 115 . 30 634 262 Remotely 555 | . . . . . 293 262 Salvage Created 934 | 92 115 51 . 11 511 154 Parts 70 | 6 21 6 . 4 28 5 Haulers Intercepted 1 | . . . . . 1 . Recyclers Shooed . | . . . . . . . Parts Field Recycled . | . . . . . . . Retrieved Matter . | . . . . . . . Parts Self-Destructed . | . . . . . . . Prevented . | . . . . . . . Kills | -11 -10 -10 -10 -9 -8 -8 ------- Run | Yrd Mat Min Exi Min Mat Gar Combat Hostiles Destroyed 28 | . 9 3 . 1 12 3 Guns 19 | . 6 3 . 1 6 3 Cannons 1 | . . . . . 1 . AOE 8 | . 3 . . . 5 . Classes Destroyed 8 | 2 2 . . . 4 . Worker 2 | . 1 . . . 1 . Tunneler 1 | 1 . . . . . . Hauler 1 | . . . . . 1 . Recycler 1 | 1 . . . . . . Swarmer 13 | . 9 3 . 1 . . Grunt 10 | . . . . . 8 2 Sentry 4 | . . . . . 3 1 Heavy 1 | . . . . . 1 . Best Kill Streak 6 | 1 6 3 . 1 6 2 Combat Bots Only 6 | . 6 3 . 1 6 2 Max Kills in Single Turn 2 | 1 2 1 . 1 2 1 Gunslinging . | . . . . . . . Exploded 2 | . 2 . . . 2 . Melee . | . . . . . . . Uniques/NPCs Destroyed . | . . . . . . . Combat | -11 -10 -10 -10 -9 -8 -8 -------- Run | Yrd Mat Min Exi Min Mat Gar Hostile Shots Fired 228 | . 45 12 . 4 136 31 Missed 54 | . 14 4 . 1 31 4 Damage Taken 3198 | . 240 64 . 28 2519 347 Core 630 | . 59 19 . . 484 68 Absorbed by Shields 56 | . . . . . . 56 Core Remaining (%) 84 | 100 . . . 68 . . Volleys Fired 94 | 10 20 6 . 3 42 13 Largest 2 | 1 2 2 . 2 2 2 Hottest 86 | 20 50 46 . 46 86 58 Shots Fired 167 | 10 34 12 . 6 79 26 Gun 141 | 10 30 12 . 6 58 25 Cannon 8 | . . . . . 7 1 Launcher 18 | . 4 . . . 14 . Special . | . . . . . . . Kinetic 137 | 10 30 12 . 6 53 26 Thermal 12 | . . . . . 12 . Explosive 18 | . 4 . . . 14 . Electromagnetic . | . . . . . . . Robot Hit Streak 9 | 3 4 2 . 3 7 9 Robot Miss Streak 5 | 4 3 2 . 3 5 1 Penetration Max . | . . . . . . . Secondary Targets . | . . . . . . . Shots Hit Robots 99 | 5 15 5 . 3 48 23 Core Hits 65 | 4 12 3 . 1 34 11 Critical Kills 1 | . 1 . . . . . Critical Parts Destroyed . | . . . . . . . Critical Strikes 1 | . 1 . . . . . Destroy 1 | . 1 . . . . . Melee Attacks . | . . . . . . . Impact . | . . . . . . . Slashing . | . . . . . . . Piercing . | . . . . . . . Sneak Attacks . | . . . . . . . Combat Hostiles . | . . . . . . . Follow-up Attacks . | . . . . . . . Damage Inflicted 2094 | 45 299 97 . 46 1277 330 Guns 1172 | 45 144 97 . 46 525 315 Cannons 123 | . . . . . 108 15 Explosions 796 | . 155 . . . 641 . Melee . | . . . . . . . Ramming 3 | . . . . . 3 . Kinetic 1143 | 45 144 97 . 46 481 330 Thermal 203 | . . . . . 203 . Explosive 745 | . 155 . . . 590 . Electromagnetic . | . . . . . . . Impact . | . . . . . . . Slashing . | . . . . . . . Piercing . | . . . . . . . Highest Corruption . | . . . . . . . Average Corruption . | . . . . . . . Corruption Purged . | . . . . . . . Corruption Blocked . | . . . . . . . Overload Shots . | . . . . . . . Overflow Damage 11 | . 11 . . . . . Projectiles . | . . . . . . . Explosions 11 | . 11 . . . . . Melee . | . . . . . . . Knockbacks . | . . . . . . . Impact . | . . . . . . . Kinetic . | . . . . . . . Secondary . | . . . . . . . Self-Inflicted Damage 64 | . . . . . 64 . Shots 2 | . . . . . 2 . Rammed 1 | . . . . . 1 . Targets Rammed 1 | . . . . . 1 . Kicked . | . . . . . . . Crushed . | . . . . . . . Highest Temperature 611 | . 20 . . . 611 17 Average Temperature 175 | . 10 . . . 187 10 Received Heat Transfer 939 | . . . . . 720 219 Effects 9 | . . . . . 9 . Shutdowns 1 | . . . . . 1 . Energy Bleed 1 | . . . . . 1 . Matter Decay 1 | . . . . . 1 . Short Circuit 1 | . . . . . 1 . Damage (minor) 2 | . . . . . 2 . Damage (major) 1 | . . . . . 1 . Damage (core) 2 | . . . . . 2 . Siege Activations . | . . . . . . . Robots Corrupted . | . . . . . . . Combat Hostiles . | . . . . . . . Parts Fried . | . . . . . . . Impact Corruptions . | . . . . . . . Robots Melted . | . . . . . . . Combat Hostiles . | . . . . . . . Parts Melted 1 | . . . . . 1 . Heat Transferred 383 | . . . . . 383 . Parts Sabotaged . | . . . . . . . Parts Stolen . | . . . . . . . Parts Stripped . | . . . . . . . Power Chain Reactions . | . . . . . . . Alert | -11 -10 -10 -10 -9 -8 -8 ------- Run | Yrd Mat Min Exi Min Mat Gar Peak Influence 326 | 10 271 190 . 59 326 256 Initial 170 | . 6 105 . . . 170 Average 146 | 3 190 188 . 15 194 198 Maximum Alert Level 1 | . 1 . . . 1 1 Low Security (%) 74 | 100 85 100 . 100 41 50 Level 1 25 | . 14 . . . 58 49 Level 2 . | . . . . . . . Level 3 . | . . . . . . . Level 4 . | . . . . . . . Level 5 . | . . . . . . . High Security . | . . . . . . . Max Security . | . . . . . . . Squads Dispatched 7 | . . . . . 7 . Investigation 2 | . . . . . 2 . Extermination . | . . . . . . . Reinforcement 1 | . . . . . 1 . Assault . | . . . . . . . Garrison 4 | . . . . . 4 . Intercept . | . . . . . . . Searches Triggered . | . . . . . . . Construction Impeded . | . . . . . . . Haulers Reinforced . | . . . . . . . Active Scanning Responses . | . . . . . . . Cargo Convoy Interrupts . | . . . . . . . Stealth | -11 -10 -10 -10 -9 -8 -8 --------- Run | Yrd Mat Min Exi Min Mat Gar Distress Signals 2 | . . . . . 2 . Communications Jammed . | . . . . . . . Distress Signals . | . . . . . . . Times Spotted 48 | . 9 4 . 3 26 6 Peak Tracking Total 7 | . 3 2 . 2 7 3 Tactical Retreats 3 | . . . . . 3 . Traps | -11 -10 -10 -10 -9 -8 -8 ------- Run | Yrd Mat Min Exi Min Mat Gar Traps Triggered 1 | . . . . . 1 . Indirectly . | . . . . . . . Trap Hack Attempts . | . . . . . . . Triggered . | . . . . . . . Disarmed . | . . . . . . . Reprogrammed . | . . . . . . . Reused 2 | . . . . . 2 . Traps Reconfigurated 8 | . . . . . 3 5 Traps Extracted . | . . . . . . . Installed . | . . . . . . . Triggered 2 | . . . . . 2 . Machines | -11 -10 -10 -10 -9 -8 -8 ---------- Run | Yrd Mat Min Exi Min Mat Gar Machines Disabled 4 | . 1 . . . 3 . Max in Single Turn 3 | . 1 . . . 3 . Machines Repaired . | . . . . . . . Machines Dismantled . | . . . . . . . Machines Sabotaged . | . . . . . . . Overloaded Fab Kills . | . . . . . . . Hacking | -11 -10 -10 -10 -9 -8 -8 --------- Run | Yrd Mat Min Exi Min Mat Gar Machines Accessed 8 | . 1 . 2 . 4 1 Terminals 5 | . 1 . . . 3 1 Fabricators . | . . . . . . . Repair Stations . | . . . . . . . Recycling Units . | . . . . . . . Scanalyzers . | . . . . . . . Garrison Access 1 | . . . . . 1 . Total Hacks 20 | . 2 . 5 . 11 2 Successful 10 | . . . 5 . 4 1 Failed 10 | . 2 . . . 7 1 Catastrophic 2 | . . . . . 2 . Database Lockouts . | . . . . . . . Manual 1 | . . . 1 . . . Terminals 12 | . 2 . . . 8 2 Fabricators . | . . . . . . . Repair Stations . | . . . . . . . Recycling Units . | . . . . . . . Scanalyzers . | . . . . . . . Garrison Access 3 | . . . . . 3 . Terminal Hacks 9 | . . . 5 . 3 1 Record 5 | . . . 5 . . . Robot Analysis 1 | . . . . . 1 . Open Door 1 | . . . . . . 1 Alert Level 1 | . . . . . 1 . Zone Layout 1 | . . . . . 1 . Fabricator Hacks . | . . . . . . . Repair Station Hacks . | . . . . . . . Recycling Unit Hacks . | . . . . . . . Scanalyzer . | . . . . . . . Garrison Access Hacks 1 | . . . . . 1 . Unlock Access 1 | . . . . . 1 . Unauthorized Hacks . | . . . . . . . Terminals . | . . . . . . . Fabricators . | . . . . . . . Repair Stations . | . . . . . . . Recycling Units . | . . . . . . . Scanalyzers . | . . . . . . . Garrison Access . | . . . . . . . Data Cores Recovered . | . . . . . . . Used . | . . . . . . . Hacking Detections 6 | . 1 . . . 4 1 Full Trace Events 1 | . . . . . 1 . Feedback Events . | . . . . . . . Feedback Blocked . | . . . . . . . Robot Schematics Acquired . | . . . . . . . Robots Built . | . . . . . . . Authchips . | . . . . . . . Time . | . . . . . . . Total Robot Build Rating . | . . . . . . . Part Schematics Acquired . | . . . . . . . Parts Built . | . . . . . . . Authchips . | . . . . . . . Time . | . . . . . . . Total Part Build Rating . | . . . . . . . Parts Repaired . | . . . . . . . Time . | . . . . . . . Parts Recycled . | . . . . . . . Recycled Matter . | . . . . . . . Retrieved Matter . | . . . . . . . Retrieved Components . | . . . . . . . Parts Scanalyzed . | . . . . . . . Part Schematics Acquired . | . . . . . . . Parts Damaged . | . . . . . . . Bothacking | -11 -10 -10 -10 -9 -8 -8 ------------ Run | Yrd Mat Min Exi Min Mat Gar Used RIF Installer . | . . . . . . . Robots Hacked . | . . . . . . . Non-combat . | . . . . . . . Combat . | . . . . . . . Robot Hacks Applied . | . . . . . . . Relay Couplers Released . | . . . . . . . Fabnet Peak Effective % . | . . . . . . . Robots Rewired . | . . . . . . . Allies Hacked . | . . . . . . . Hacks Repelled . | . . . . . . . Allies | -11 -10 -10 -10 -9 -8 -8 -------- Run | Yrd Mat Min Exi Min Mat Gar Total Allies 4 | . . . . 3 . 1 Largest Group 3 | . . . . 3 2 1 Highest-Rated Group 40 | . . . . 40 32 20 Highest-Rated Ally 20 | . . . . 16 16 20 Total Orders . | . . . . . . . Ally Attacks 34 | . . . . 5 27 2 Total Damage 451 | . . . . 29 385 37 Kills 6 | . . . . 2 3 1 Allies Corrupted . | . . . . . . . Allies Melted 1 | . . . . . . 1 Intel | -11 -10 -10 -10 -9 -8 -8 ------- Run | Yrd Mat Min Exi Min Mat Gar Robot Analysis Total 1 | . . . . . 1 . Derelict Logs Recovered 1 | . . 1 . . . . Drone Launches . | . . . . . . . Drone Recoveries . | . . . . . . . Exploration | -11 -10 -10 -10 -9 -8 -8 ------------- Run | Yrd Mat Min Exi Min Mat Gar Turns Passed 2487 | 92 360 338 366 462 602 267 Spaces Moved 1465 | 67 213 222 258 324 247 134 Core 10 | 9 . . . . 1 . Treads . | . . . . . . . Legs . | . . . . . . . Wheels 1455 | 58 213 222 258 324 246 134 Hover . | . . . . . . . Flight . | . . . . . . . Fastest Speed 50 | 50 90 140 140 140 130 145 Average Speed 138 | 84 131 140 140 140 149 145 Slowest Speed 1650 | 90 140 140 140 140 1650 145 Overloaded Moves . | . . . . . . . Propulsion Burnouts . | . . . . . . . Robots Hopped . | . . . . . . . Cave-ins Triggered . | . . . . . . . Exploration Rate (%) 37 | 4 39 50 62 68 18 20 Regions Visited 6 Branch Regions 3 Pre-discovered Areas . | . . . . . . . Known Exits Taken 1 | . . . . . 1 . Unknown Exits Taken 5 | 1 1 1 1 1 . . Scrap Searched 1 | . . . . 1 . . Spaces Dug . | . . . . . . . Terrain Destroyed 103 | . 22 . . . 81 . Melee . | . . . . . . . Projectile . | . . . . . . . AOE 103 | . 22 . . . 81 . Terrain Rammed . | . . . . . . . Walls Destroyed . | . . . . . . . Machines Disabled . | . . . . . . . Actions | -11 -10 -10 -10 -9 -8 -8 --------- Run | Yrd Mat Min Exi Min Mat Gar Total 1758 | 94 258 237 263 326 397 183 Wait 85 | . . . . . 59 26 Move 1460 | 66 212 221 257 323 247 134 Hop . | . . . . . . . Pick Up 55 | 13 16 5 . . 18 3 Fast Attach 4 | . 1 . 2 . 1 . Attach 33 | 5 1 1 . . 21 5 Detach 2 | . . . 1 . . 1 Swap 18 | . 7 2 1 . 7 1 Drop 7 | . 1 2 2 . 2 . Fire 94 | 10 20 6 . 3 42 13 Melee . | . . . . . . . Ram . | . . . . . . . Kick . | . . . . . . . Crush . | . . . . . . . Escape Stasis . | . . . . . . . Rewire . | . . . . . . . Trap . | . . . . . . . Miscellaneous . | . . . . . . . Route ------- -11/Scrapyard -10/Materials (discovered 2 exits: [*Mat] / [*Min]) -10/Mines -10/Exiles -9/Mines -8/Materials (discovered 2 exits: Fac / Gar) -8/Garrison History --------- Turn | Location | Event 9 | -11/Scrapyard | Discovered new exit (range 16) 93 | -11/Scrapyard | Entered Materials 316 | -10/Materials | Build established: Mutant 336 | -10/Materials | Discovered new exit (range 5) 347 | -10/Materials | Discovered new exit (range 16) 453 | -10/Materials | Entered Mines 533 | -10/Mines | Joined a pair of Derelicts in attacking an 0b10 outpost 637 | -10/Mines | Received a Rocket Launcher from a helpful Derelict 704 | -10/Mines | Learned location of 1 exit from Materials 716 | -10/Mines | Found a damaged Exp. Sensor Array with a note attached 720 | -10/Mines | Found Prototype Device 721 | -10/Mines | Identified Exp. Sensor Array 726 | -10/Mines | Assembled infested the area 784 | -10/Mines | Deemed a non-threat by the Exiles lab entrance 785 | -10/Mines | Discovered new exit (range 5) 791 | -10/Mines | Entered Exiles 825 | -10/Exiles | Met 8R-AWN 849 | -10/Exiles | Met EX-HEX 892 | -10/Exiles | Met EX-BIN 908 | -10/Exiles | Aligned with FarCom system 909 | -10/Exiles | Given EX-Vault access code 944 | -10/Exiles | Opened EX-Vault 951 | -10/Exiles | Found Prototype Device 951 | -10/Exiles | Identified Skeleton Box 960 | -10/Exiles | Found Prototype Device 960 | -10/Exiles | Identified Trap Reconfigurator 1044 | -10/Exiles | Warned to stay clear of 0b10 Research branches 1084 | -10/Exiles | Met EX-DEC 1143 | -10/Exiles | Discovered new exit (range 11) 1157 | -10/Exiles | Left Exiles lab with Trap Reconfigurator 1157 | -10/Exiles | Entered Mines 1211 | -9/Mines | Assisted by bots powering up and referring to "LRC-V3" 1609 | -9/Mines | Discovered new exit (range 6) 1619 | -9/Mines | Entered Materials 1619 | -8/Materials | Accompanied by 2 allies 1619 | -8/Materials | Evolved 4 slots: Utility x4 1620 | -8/Materials | Identified exit to Factory 1664 | -8/Materials | Garrison activated, responded to threat 1780 | -8/Materials | Garrison activated, responded to threat 1828 | -8/Materials | Core integrity fell below 50% 1858 | -8/Materials | Lost 13 parts (1p2n9u1w) 1924 | -8/Materials | Core integrity fell below 20% 2107 | -8/Materials | Lost 5 parts (1p2n1u1w) 2220 | -8/Materials | Identified exit to Garrison 2221 | -8/Materials | Entered Garrison 2333 | -8/Garrison | Triggered checkpoint 2389 | -8/Garrison | Rescued a captive Derelict 2465 | -8/Garrison | Triggered checkpoint 2488 | -8/Garrison | Destroyed by G-47 Trooper with Particle Gun Last Messages --------------- Y-45 Defender destroyed. Acquired 57 matter. Connecting with Door Terminal... >>Open(Door) Sealed Heavy Doors opened. VW-RDL(b): "WARLORD FOREVER!" Acquired Imp. Ion Engine. Acquired Beam Rifle. Stasis Trap reprogrammed. Beams of light sweep through the air. An alarm sounds. Stasis Trap reprogrammed. Acquired 55 matter. VW-RDL(b) heat short circuits Imp. Deuterium Engine. VW-RDL(b) critical meltdown. Acquired 53 matter. Hvy. Assault Rifle destroyed. Com. Wheel destroyed. Hvy. Assault Rifle destroyed. Map ----- +----------------------------------------------------+ | ?????????????????????????????????????????????????? | | ?????????????????????????????????????????????????? | | ?????????????????????????????????????????????????? | | ?????????????????????????????????????????????????? | | ?????????????????????????????????????????????????? | | ?????????????????????????????????????????????????? | | ?????????????????????????????????????????????????? | | ?????????????????????????????????????????????????? | | ?????????????????????????????????????????????????? | | ?????????????????????????????????????????????????? | | ????????????????????????? ??????????????????????? | | ????????????????????????# ##????????????????????? | | ???????????????????????? #????????????????????? | | ???????????????????????? #????????????????????? | | ?????????????? ????????? #????????????????????? | | ?????????????? ?#?????# #????????????????????? | | ?????????????# ## ???## #????????????????????? | | ?????????????" ?^ "????????????????????? | | ????????????g? ^ "g???????????????????? | | ????????????g?? "g???????????????????? | | ????????????????? ?^^^ "????????????????????? | | ?????????????# ???# ?# #????????????????????? | | ???????????### ## ## ##########???????????? | | ?????????? % #???????????? | | ?????????? g #???????????? | | ?????????? =g @ ####### #???????????? | | ?????????????????## ## ##?????# #???????????? | | ??????????????????#?????# #??????# #???????????? | | ????????????????????????# #??????# #???????????? | | ????????????????????????# #??????# #???????????? | | ????????????????????????# #??????# #???????????? | | ????????????????????????# #??????# #???????????? | | ????????????????????????# #??????# #???????????? | | ????????????????????????# ######## ############# | | ????????????????????????# | | ????????????????????????# | | ????????????????????????####### ################ | | ??????????????????????????????# #??????????????# | | ??????????????????????????????# #??????????????# | | ??????????????????????????????# #??????????????# | | ??????????????????????????????# #??????????????# | | ??????????????????????????????# #??????????????# | | ??????????????????????????????# #??????????????# | | ??????????????????????????????# #??????????????# | | ??????????????????????????????# ######## #?????# | | ??????????????????????????????# #?????### | | ??????????????????????????????# # !######???????? | | ??????????????????????????????# # [ #????????????? | | ??????????????????????????????# #####????????????? | | ??????????????????????????????# #????????????????? | +----------------------------------------------------+ Best States ------------- Heat Dissipation 45 Energy Generation 12 Energy Capacity 265 Matter Stores 300 Matter Capacity 300 Sight Range 16 Terrain Scan Range 16 Terrain Scan Density 10 Armor Coverage 600 Evasion (%) 42 Targeting Accuracy 6 Item Schematics ----------------- None Robot Schematics ------------------ None Fabricated ------------ Nothing Alien Tech Used ----------------- None Achievements -------------- None Challenges ------------ None Game ------ Seed TiamatRestorationSystem Manual? 0 Play Time 00:26:20 Cumulative 54.4 hours Start 2024.04.20 @ 21:18:01 End 2024.04.20 @ 21:46:15 Sessions 1 Manual Loads 0 Difficulty Rogue Special Mode None Game No. 61 Rogue 52 Adventurer 9 Explorer 0 Win Type - Total 0 Types 0/0/0/0/0/0/0/0/0 Lore% 32 Gallery% 47 Achievement% 37 Wizard Run 0 Options --------- Layout 1 ASCII 0 Keyboard 0 Movement Mouse Keybinds 0 Fullscreen 1 Font 24/Smallcaps Map View 50x35 Zoom Use 0% Tactical HUD 0 Map Filters NONE Filters NONE Steam 1 RUN: 73c23282-a572-497f-bb2e-09e9308d9a01